bitfinex/quotes_SOLUSD_20250814
["timestamp","ask_amount","ask_price","bid_price","bid_amount"]
[1755179394567,5.64470984,194.87,194.85,44.34]
[1755179394780,5.13162621,194.87,194.85,44.34]
[1755179395172,5.13150301,194.88,194.85,44.34]
[1755179395488,5.80150301,194.88,194.85,44.34]
[1755179396164,0.67,194.87,194.85,44.34]
[1755179396668,27.18308363,194.86,194.85,44.34]
[1755179397178,26.67,194.86,194.85,44.34]
[1755179397371,26.0,194.86,194.85,44.34]
[1755179397692,10.0,194.94,194.85,44.34]
[1755179397693,0.51308363,194.9,194.85,50.12211306]
[1755179397986,5.13012937,194.93,194.86,44.26]
[1755179398186,0.67,194.9,194.84,0.03]
[1755179398392,0.51308363,194.89,194.85,44.24]
[1755179398815,1.18308364,194.93,194.85,44.24]
[1755179399295,0.67,194.92,194.85,44.24]
[1755179399484,0.51308363,194.91,194.85,44.24]
[1755179399687,0.67,194.9,194.85,44.24]
[1755179400004,1.18308364,194.93,194.85,44.24]
[1755179400320,26.0,194.89,194.85,44.24]
[1755179400497,0.51308363,194.88,194.85,44.24]
[1755179400795,1.17308363,194.88,194.86,44.12]
[1755179401176,0.66,194.87,194.86,44.12]
[1755179401763,0.66,194.87,194.84,0.03]
[1755179401967,0.66,194.87,194.82,0.03]
[1755179401968,0.51308363,194.86,194.82,0.03]
[1755179402201,0.51308363,194.86,194.7,0.75]
[1755179402202,26.0,194.79,194.7,0.75]
[1755179402490,26.51308363,194.79,194.7,0.03]
[1755179402690,26.51308363,194.79,194.72,0.72]
[1755179403094,26.0,194.79,194.72,0.72]
[1755179403264,0.66,194.86,194.78,44.15]
[1755179403471,0.51308363,194.85,194.78,44.15]
[1755179403670,5.64510292,194.86,194.79,0.72]
[1755179403870,26.0,194.83,194.79,0.72]
[1755179404069,6.30602685,194.82,194.78,0.03]
[1755179404265,5.64602685,194.82,194.79,44.12]
[1755179404484,26.0,194.79,194.78,0.03]
[1755179404799,26.66,194.79,194.7,0.03]
[1755179404975,0.51308363,194.78,194.7,0.03]
[1755179405297,0.66,194.77,194.7,0.03]
[1755179405494,0.66,194.77,194.68,0.03]
[1755179405495,26.0,194.69,194.68,0.03]
[1755179405677,36.0,194.65,194.57,0.03]
[1755179405880,26.0,194.58,194.57,0.03]
[1755179406088,26.0,194.58,194.52,2.67544188]
[1755179406089,5.13953846,194.57,194.52,2.67544188]
[1755179406315,36.0,194.54,194.52,1.99544188]
[1755179406501,10.51308363,194.53,194.51,1e-08]
[1755179406681,10.0,194.52,194.51,1e-08]
[1755179407408,44.89730343,194.52,194.51,1e-08]
[1755179407574,41.6192992,194.52,194.51,1e-08]
[1755179407775,26.51308363,194.52,194.51,1e-08]
[1755179408001,36.51308363,194.52,194.51,1e-08]
[1755179408318,36.51308363,194.52,194.35,0.72]
[1755179408319,15.10621557,194.48,194.35,0.72]
[1755179408491,74.00239109,194.52,194.36,44.14]
[1755179408492,26.0,194.43,194.36,44.14]
[1755179408803,0.51308363,194.47,194.37,0.72]
[1755179408983,26.0,194.5,194.38,15.10621557]
[1755179409175,0.51308363,194.52,194.4,15.10621557]
[1755179409376,0.51308363,194.51,194.41,0.72]
[1755179409580,26.0,194.5,194.42,44.14]
[1755179409898,0.51308363,194.49,194.47,0.03]
[1755179410088,5.1419169,194.48,194.47,0.03]
[1755179410482,0.51308363,194.5,194.47,0.75]
[1755179410796,0.51308363,194.61,194.48,15.10621557]
[1755179411015,5.07716894,194.61,194.5,15.10621557]
[1755179411300,0.51308363,194.6,194.47,0.03]
[1755179411475,36.0,194.57,194.48,44.16]
[1755179411680,1.17308363,194.56,194.49,44.16]
[1755179412012,26.0,194.57,194.49,44.16]
[1755179412013,0.51308363,194.57,194.5,0.72]
[1755179412300,5.00433288,194.61,194.52,15.10621557]
[1755179412489,5.65087221,194.64,194.53,0.72]
[1755179413000,0.51308363,194.64,194.54,44.18]
[1755179413199,0.66,194.69,194.54,44.18]
[1755179413200,0.51308363,194.65,194.55,15.82621557]
[1755179413411,26.0,194.67,194.56,0.72]
[1755179413578,0.51308363,194.66,194.56,0.72]
[1755179413788,26.51308363,194.66,194.57,44.22]
[1755179414102,26.51308363,194.66,194.56,0.72]
[1755179414103,26.0,194.65,194.58,44.22]
[1755179414323,0.51308363,194.64,194.59,0.72]
[1755179414476,5.23203005,194.65,194.6,15.10621557]
[1755179414679,10.0,194.79,194.62,15.10621557]
[1755179414680,0.51308363,194.71,194.62,15.10621557]
[1755179414876,5.13434574,194.77,194.64,15.10621557]
[1755179415079,26.0,194.74,194.65,0.72]
[1755179415283,0.51308363,194.73,194.66,44.26]
[1755179415512,0.51308363,194.73,194.67,44.22]
[1755179416108,26.0,194.72,194.66,44.22]
[1755179416312,26.0,194.68,194.64,44.24]
[1755179416485,0.51308363,194.67,194.64,44.24]
[1755179417497,0.51308363,194.67,194.64,44.2]
[1755179418185,5.13716223,194.66,194.64,44.2]
[1755179418386,0.51308363,194.67,194.64,44.2]
[1755179418798,26.0,194.7,194.64,44.92]
[1755179419084,0.51308363,194.69,194.64,44.2]
[1755179419317,26.51308363,194.69,194.64,44.2]
[1755179419479,12.83838076,194.73,194.64,44.2]
[1755179419480,0.51308363,194.71,194.65,0.72]
[1755179419682,5.6476669,194.76,194.65,0.72]
[1755179419894,0.51308363,194.76,194.66,15.10621557]
[1755179420096,0.51308363,194.78,194.68,15.10621557]
[1755179420304,5.64717668,194.78,194.69,0.72]
[1755179420493,26.0,194.75,194.7,44.24]
[1755179420700,0.51308363,194.74,194.7,44.24]
[1755179420904,0.51308363,194.77,194.7,44.24]
[1755179421114,1.17308363,194.77,194.71,44.2]
[1755179421408,26.0,194.74,194.63,0.03]
[1755179421620,26.51308363,194.73,194.68,44.18]
[1755179421788,0.66,194.72,194.63,0.03]
[1755179421987,0.51308363,194.71,194.64,44.18]
[1755179422211,26.0,194.67,194.63,44.21]
[1755179422413,1.17308363,194.66,194.63,0.03]
[1755179422587,26.66,194.65,194.53,5.859546]
[1755179422789,0.51308363,194.64,194.54,44.18]
[1755179423794,0.51308363,194.64,194.53,0.72]
[1755179424114,0.51308363,194.64,194.54,44.18]
[1755179424416,26.0,194.59,194.51,33.88]
[1755179424587,0.51308363,194.58,194.52,44.18]
[1755179424787,26.0,194.54,194.49,44.18]
[1755179425004,1.17308363,194.53,194.49,44.18]
[1755179425409,0.51308363,194.53,194.49,44.18]
[1755179425817,0.51308363,194.54,194.5,0.72]
[1755179426023,0.51308363,194.54,194.49,44.18]
[1755179426349,26.0,194.5,194.47,0.75]
[1755179426490,0.51308363,194.49,194.47,0.03]
[1755179427002,7.7699944,194.49,194.47,0.03]
[1755179427307,7.7699944,194.49,194.47,0.75]
[1755179427810,0.51308363,194.56,194.48,0.72]
[1755179428015,26.0,194.53,194.48,0.72]
[1755179428245,26.0,194.53,194.49,0.72]
[1755179428515,0.51308363,194.62,194.5,0.72]
[1755179428690,5.65130169,194.62,194.5,0.72]
[1755179429309,26.0,194.59,194.51,44.18]
[1755179429499,0.51308363,194.58,194.52,0.72]
[1755179429821,0.51308363,194.61,194.53,15.10621557]
[1755179430012,0.51308363,194.61,194.54,0.72]
[1755179430236,26.0,194.6,194.54,0.72]
[1755179430433,0.51308363,194.59,194.54,0.72]
[1755179430936,0.51308363,194.59,194.55,0.67]
[1755179431241,0.51308363,194.59,194.56,0.67]
[1755179431421,0.51308363,194.65,194.57,0.67]
[1755179431617,12.84014192,194.71,194.58,15.10621557]
[1755179431618,6.69140365,194.66,194.58,15.10621557]
[1755179431830,0.51308363,194.71,194.6,15.10621557]
[1755179432020,26.0,194.64,194.61,0.67]
[1755179432336,26.0,194.64,194.62,0.67]
[1755179432511,26.51308363,194.63,194.62,0.67]
[1755179432710,0.51308363,194.63,194.62,44.18]
[1755179433138,0.51308363,194.66,194.63,15.10621557]
[1755179433329,0.51308363,194.73,194.65,15.10621557]
[1755179433531,6.6876555,194.73,194.64,0.67]
[1755179433864,0.51308363,194.72,194.64,0.67]
[1755179434027,0.51308363,194.75,194.64,0.67]
[1755179434342,5.13505186,194.74,194.66,5.13716223]
[1755179434512,26.0,194.71,194.65,44.18]
[1755179434710,0.51308363,194.7,194.64,0.67]
[1755179434927,0.51308363,194.7,194.65,44.18]
[1755179435126,0.51308363,194.73,194.66,44.18]
[1755179435329,26.0,194.71,194.66,44.85]
[1755179435642,0.51308363,194.73,194.67,0.67]
[1755179435814,26.0,194.72,194.67,0.67]
[1755179436018,0.51308363,194.71,194.69,15.10621557]
[1755179436219,0.51308363,194.71,194.68,0.67]
[1755179436220,6.60901038,194.75,194.7,0.67]
[1755179436554,0.51308363,194.74,194.71,0.67]
[1755179436722,0.51308363,194.74,194.7,5.13609259]
[1755179437041,0.51308363,194.76,194.72,0.67]
[1755179437243,0.57308363,194.78,194.73,44.83]
[1755179437461,5.07072504,194.78,194.74,15.77621557]
[1755179437680,5.07072504,194.78,194.76,15.10621557]
[1755179437877,0.06,194.78,194.77,0.67]
[1755179438332,0.06,194.8,194.79,15.10621557]
[1755179438537,6.38916803,194.88,194.79,15.77621557]
[1755179438864,0.51308363,194.87,194.8,0.67]
[1755179439084,26.0,194.9,194.8,0.67]
[1755179439367,0.7,194.92,194.81,15.10621557]
[1755179439368,0.51308363,194.89,194.81,15.10621557]
[1755179439570,26.0,194.89,194.82,0.67]
[1755179439733,26.51308363,194.88,194.83,44.16]
[1755179439933,0.51308363,194.88,194.8,0.67]
[1755179440235,0.7,194.87,194.77,0.67]
[1755179440449,0.51308363,194.86,194.78,44.14]
[1755179440643,26.0,194.86,194.79,15.77621557]
[1755179440853,5.53455568,194.89,194.8,0.67]
[1755179441129,0.1,194.92,194.81,15.10621557]
[1755179441399,0.1,194.92,194.83,15.10621557]
[1755179441655,0.1,194.92,194.85,15.10621557]
[1755179441864,0.1,194.92,194.86,0.67]
[1755179442232,5.14143904,194.92,194.87,15.10621557]
[1755179442428,5.14143904,194.92,194.88,0.67]
[1755179442639,0.1,194.92,194.9,15.10621557]
[1755179442933,1e-08,194.93,194.91,0.67]
[1755179443352,1e-08,194.93,194.92,44.79]
[1755179444756,1e-08,194.93,194.92,44.12]
[1755179444971,26.00000001,194.93,194.88,0.67]
[1755179445174,26.00000001,194.93,194.92,44.12]
[1755179445386,1e-08,194.93,194.92,44.79]
[1755179445879,1e-08,194.93,194.92,44.1]
[1755179446067,26.0,194.92,194.88,0.67]
[1755179446265,1e-08,194.93,194.89,44.77]
[1755179446464,1e-08,194.93,194.9,0.67]
[1755179446772,1e-08,194.93,194.91,0.67]
[1755179447095,1e-08,194.93,194.92,0.67]
[1755179447382,1e-08,194.93,194.89,49.90099073]
[1755179447590,1e-08,194.93,194.89,44.1]
[1755179447946,1e-08,194.93,194.89,44.77]
[1755179448358,1e-08,194.93,194.85,15.10621557]
[1755179448552,5.13057308,194.91,194.86,44.1]
[1755179448764,5.64365671,194.91,194.86,44.1]
[1755179448964,5.64365671,194.91,194.86,44.77]
[1755179449474,26.0,194.92,194.87,0.67]
[1755179449864,0.51308364,194.93,194.88,0.67]
[1755179450055,0.51308364,194.93,194.86,44.1]
[1755179450244,0.51308364,194.93,194.86,44.77]
[1755179450654,5.13005343,194.93,194.86,44.77]
[1755179450878,0.51308363,194.92,194.86,44.77]
[1755179451046,0.51308363,194.92,194.86,44.1]
[1755179451251,0.51308363,194.92,194.82,15.418167]
[1755179451252,26.0,194.9,194.87,44.08]
[1755179451550,26.0,194.9,194.87,44.75]
[1755179451765,26.51308363,194.92,194.87,44.75]
[1755179452060,1e-08,194.93,194.88,0.67]
[1755179452255,0.51308363,194.92,194.89,44.06]
[1755179452466,26.0,194.9,194.89,44.06]
[1755179452678,31.64391995,194.9,194.89,44.06]
[1755179452877,0.51308363,194.92,194.89,44.73]
[1755179453059,1e-08,194.93,194.9,0.67]
[1755179453274,1e-08,194.93,194.91,15.10621557]
[1755179453577,1e-08,194.93,194.92,0.67]
[1755179454774,1e-08,194.93,194.92,5.80030987]
[1755179455479,1e-08,194.93,194.92,20.90652544]
[1755179455861,1e-08,194.93,194.92,33.67601562]
[1755179456272,1e-08,194.93,194.92,34.1890466]
[1755179456658,1e-08,194.93,194.92,44.1890466]
[1755179457398,1e-08,194.93,194.92,34.1890466]
[1755179457579,1e-08,194.93,194.92,21.41955642]
[1755179457879,1e-08,194.99,194.96,41.10621557]
[1755179458065,0.1,195.09,194.98,27.87570575]
[1755179458270,0.1,195.09,194.97,79.04289942]
[1755179458271,0.1,195.09,195.0,15.10621557]
[1755179458469,0.1,195.09,195.02,15.10621557]
[1755179458680,0.1,195.09,195.06,15.10621557]
[1755179458887,0.1,195.09,195.08,15.10621557]
[1755179459060,0.1,195.09,195.08,15.77621557]
[1755179459574,0.1,195.09,195.05,0.67]
[1755179459755,0.1,195.09,195.07,20.23258046]
[1755179459956,0.1,195.09,195.07,20.90258046]
[1755179460354,0.1,195.09,195.04,0.67]
[1755179460655,0.1,195.09,195.06,15.10621557]
[1755179460861,0.1,195.09,195.08,15.10621557]
[1755179461081,0.1,195.09,195.08,0.72]
[1755179461259,0.1,195.09,195.06,15.10621557]
[1755179461468,0.1,195.09,195.05,2.049443]
[1755179461776,0.1,195.09,195.07,44.02]
[1755179461977,0.1,195.09,195.07,49.14621658]
[1755179462175,0.1,195.09,195.08,15.82621557]
[1755179462491,0.1,195.09,195.08,15.10621557]
[1755179462793,0.1,195.09,195.06,2.049337]
[1755179462998,0.1,195.09,195.08,44.0]
[1755179463902,5.12531392,195.11,195.08,44.0]
[1755179464092,5.84531392,195.11,195.08,44.0]
[1755179464296,0.17308363,195.1,195.08,44.0]
[1755179465849,5.12583935,195.09,195.08,44.0]
[1755179466350,5.84583935,195.09,195.08,44.0]
[1755179466554,5.12583935,195.09,195.08,44.0]
[1755179466955,5.12583935,195.09,195.08,43.98]
[1755179467361,0.17308363,195.11,195.08,43.98]
[1755179467712,5.18924238,195.12,195.08,44.7]
[1755179467713,5.12508872,195.12,195.08,44.7]
[1755179467875,5.12508872,195.12,195.08,43.98]
[1755179468079,0.17308363,195.11,195.08,43.98]
[1755179468299,0.17308363,195.11,195.05,0.72]
[1755179468300,0.17308363,195.11,195.02,5.12746877]
[1755179468491,0.1,195.13,195.1,15.10621557]
[1755179468686,4.89683542,195.17,195.11,44.7]
[1755179468888,6.50009329,195.21,195.12,43.98]
[1755179469091,0.72,195.2,195.12,43.98]
[1755179469279,5.12268838,195.21,195.13,15.10621557]
[1755179469480,5.12268838,195.21,195.12,43.98]
[1755179469890,18.64940934,195.21,195.12,43.98]
[1755179470109,26.0,195.18,195.08,15.10621557]
[1755179470279,0.72,195.17,194.99,12.82093278]
[1755179470481,26.72,195.17,195.05,15.10621557]
[1755179470676,0.72,195.16,195.06,43.96]
[1755179470899,0.72,195.16,195.08,15.10621557]
[1755179471108,26.0,195.17,195.08,15.10621557]
[1755179471448,5.71943321,195.2,195.08,0.72]
[1755179471716,0.06,195.16,195.1,15.10621557]
[1755179471881,0.06,195.16,195.12,15.10621557]
[1755179472083,0.06,195.16,195.13,0.72]
[1755179472392,0.06,195.16,195.14,0.72]
[1755179472789,0.06,195.16,195.15,15.82621557]
[1755179473481,0.72,195.3,195.16,15.10621557]
[1755179473682,0.72,195.3,195.15,28.59570575]
[1755179473683,0.06,195.22,195.18,15.10621557]
[1755179473881,5.11875511,195.36,195.22,15.10621557]
[1755179474106,26.0,195.33,195.23,5.8421636]
[1755179474402,26.0,195.33,195.17,49.159017]
[1755179474403,26.0,195.33,195.24,44.66]
[1755179474610,26.0,195.33,195.24,43.94]
[1755179474780,0.72,195.32,195.24,43.94]
[1755179474982,5.08247388,195.33,195.24,44.66]
[1755179475190,0.72,195.35,195.24,44.66]
[1755179475597,0.72,195.35,195.22,15.10621557]
[1755179475806,26.0,195.33,195.23,43.94]
[1755179476021,26.0,195.33,195.16,26.0]
[1755179476022,26.0,195.28,195.17,33.8]
[1755179476220,26.0,195.28,195.18,59.76621557]
[1755179476425,26.0,195.28,195.19,0.72]
[1755179476594,5.1193675,195.34,195.23,12.76949018]
[1755179476795,5.1193675,195.34,195.21,26.0]
[1755179476796,5.1193675,195.34,195.25,15.10621557]
[1755179477027,5.1193675,195.34,195.27,15.10621557]
[1755179477028,26.0,195.34,195.27,15.10621557]
[1755179477209,5.11853589,195.37,195.29,15.10621557]
[1755179477519,5.11783126,195.4,195.31,15.10621557]
[1755179477727,4.99891311,195.4,195.32,0.72]
[1755179477897,0.72,195.43,195.32,0.72]
[1755179478099,31.83693656,195.43,195.32,5.83963823]
[1755179478296,26.0,195.4,195.32,0.72]
[1755179478526,18.6292407,195.43,195.33,15.10621557]
[1755179478822,5.83693656,195.43,195.35,15.10621557]
[1755179479025,5.11693656,195.43,195.36,43.9]
[1755179479205,5.20859399,195.43,195.37,15.10621557]
[1755179479403,5.11690547,195.44,195.38,0.72]
[1755179479623,5.11690547,195.44,195.37,15.10621557]
[1755179480119,5.11639805,195.45,195.38,0.72]
[1755179480332,10.18962252,195.45,195.38,0.72]
[1755179480531,10.18962252,195.45,195.39,43.9]
[1755179481025,10.18962252,195.45,195.4,43.9]
[1755179481194,23.29061765,195.45,195.4,43.9]
[1755179481600,10.49962252,195.45,195.4,43.9]
[1755179481810,10.18962252,195.45,195.4,43.9]
[1755179482216,10.49962252,195.45,195.4,43.9]
[1755179482400,10.49962252,195.45,195.36,33.78]
[1755179482401,26.0,195.42,195.36,33.78]
[1755179482601,0.31,195.41,195.36,33.78]
[1755179482902,0.31,195.41,195.37,43.88]
[1755179483098,0.31,195.4,195.36,33.78]
[1755179483326,0.31,195.39,195.37,43.88]
[1755179483527,0.31,195.38,195.37,43.88]
[1755179483731,0.31,195.41,195.37,43.88]
[1755179483911,0.06,195.43,195.37,43.88]
[1755179484322,26.0,195.42,195.37,44.6]
[1755179484520,0.06,195.43,195.38,0.72]
[1755179484912,0.06,195.43,195.39,0.72]
[1755179485230,0.06,195.43,195.38,15.10621557]
[1755179485231,0.06,195.43,195.4,0.72]
[1755179485442,0.06,195.43,195.38,15.10621557]
[1755179485611,0.06,195.43,195.42,15.10621557]
[1755179485812,0.06,195.43,195.42,59.70621557]
[1755179486228,0.06,195.43,195.42,64.82339907]
[1755179486619,0.06,195.43,195.42,59.70621557]
[1755179487028,0.06,195.43,195.4,15.10621557]
[1755179487224,0.06,195.43,195.42,58.98621557]
[1755179487429,0.06,195.43,195.42,59.70621557]
[1755179487601,0.06,195.45,195.42,59.70621557]
[1755179487602,4.73511238,195.5,195.43,15.10621557]
[1755179487804,4.73511238,195.5,195.42,44.6]
[1755179488033,5.35511238,195.5,195.42,43.88]
[1755179488327,5.35511238,195.5,195.4,15.10621557]
[1755179488328,9.7682327,195.5,195.43,43.86]
[1755179489510,35.7682327,195.5,195.43,43.86]
[1755179489832,5.11404316,195.54,195.44,15.82621557]
[1755179490338,11.49893014,195.56,195.47,5.11587455]
[1755179490529,0.65,195.6,195.48,59.63621557]
[1755179490731,5.11195174,195.62,195.5,15.10621557]
[1755179490936,5.11195174,195.62,195.52,15.10621557]
[1755179491246,5.21172858,195.63,195.53,44.53]
[1755179491412,0.1,195.63,195.54,15.79621557]
[1755179491611,0.1,195.63,195.56,15.10621557]
[1755179491824,26.1,195.63,195.58,15.10621557]
[1755179492020,5.21172007,195.63,195.55,33.74]
[1755179492339,5.21172007,195.63,195.56,43.84]
[1755179492535,43.99094616,195.63,195.56,43.84]
[1755179492724,43.99094616,195.63,195.55,33.74]
[1755179492725,26.0,195.6,195.55,33.74]
[1755179492920,26.65,195.6,195.56,43.84]
[1755179493122,26.0,195.6,195.56,43.84]
[1755179493441,0.1,195.63,195.58,15.10621557]
[1755179493747,0.1,195.63,195.58,15.79621557]
[1755179493968,5.21171021,195.63,195.56,43.84]
[1755179494245,5.21171021,195.63,195.55,33.74]
[1755179494246,26.0,195.6,195.55,33.74]
[1755179494551,0.06,195.57,195.56,43.82]
[1755179495437,26.21,195.6,195.56,43.82]
[1755179495616,0.65,195.57,195.56,43.82]
[1755179495938,0.65,195.57,195.55,33.74]
[1755179496143,0.65,195.56,195.44,33.74]
[1755179496323,17.89823574,195.55,195.44,33.74]
[1755179496637,0.65,195.54,195.44,33.74]
[1755179497143,0.65,195.54,195.45,43.8]
[1755179497313,0.65,195.54,195.46,43.8]
[1755179497736,26.0,195.52,195.46,43.8]
[1755179497946,0.65,195.58,195.47,15.10621557]
[1755179498238,5.76321924,195.58,195.49,5.11535116]
[1755179498438,5.76321924,195.58,195.48,0.69]
[1755179498439,5.76321924,195.58,195.48,5.8055848]
[1755179498849,5.76321924,195.58,195.48,0.69]
[1755179499046,18.54571233,195.58,195.48,0.69]
[1755179499357,5.11321924,195.58,195.48,0.69]
[1755179499554,5.11321924,195.58,195.48,5.8055427]
[1755179499758,13.43064793,195.61,195.49,0.69]
[1755179499759,5.11247443,195.6,195.49,0.69]
[1755179500452,5.11247443,195.6,195.51,15.10621557]
[1755179500644,5.11247443,195.6,195.52,44.47]
[1755179500845,5.11247443,195.6,195.53,0.69]
[1755179501024,0.1,195.63,195.54,27.87570575]
[1755179501227,0.1,195.63,195.56,15.10621557]
[1755179501424,0.1,195.63,195.57,44.47]
[1755179502057,0.1,195.63,195.57,0.69]
[1755179502254,0.1,195.63,195.58,44.47]
[1755179502557,0.1,195.63,195.59,0.69]
[1755179502749,0.1,195.63,195.6,0.69]
[1755179503054,0.1,195.63,195.61,0.69]
[1755179503254,0.1,195.63,195.62,15.79621557]
[1755179503651,0.1,195.63,195.62,0.69]
[1755179504155,0.1,195.63,195.62,44.45]
[1755179504340,0.1,195.63,195.62,0.69]
[1755179504549,0.1,195.63,195.62,44.45]
[1755179505145,0.1,195.63,195.61,4.80220905]
[1755179505341,0.1,195.63,195.62,12.76949018]
[1755179505544,0.1,195.63,195.61,4.80220905]
[1755179505545,0.1,195.63,195.61,17.57169923]
[1755179505752,0.1,195.63,195.59,32.98820743]
[1755179505954,0.1,195.63,195.56,15.10621557]
[1755179506147,0.1,195.63,195.58,12.76949018]
[1755179506487,0.1,195.63,195.59,43.74]
[1755179506637,0.1,195.63,195.6,43.74]
[1755179506837,0.1,195.63,195.56,15.10621557]
[1755179506838,5.21173582,195.63,195.61,43.74]
[1755179507239,0.06,195.65,195.53,26.51143047]
[1755179507240,0.06,195.65,195.62,43.74]
[1755179507555,0.65,195.64,195.63,33.7]
[1755179507734,0.65,195.64,195.63,77.44]
[1755179507935,0.65,195.64,195.63,33.7]
[1755179508351,5.11169043,195.63,195.54,33.7]
[1755179508555,0.65,195.62,195.54,33.7]
[1755179509251,0.06,195.65,195.54,33.7]
[1755179509252,0.06,195.65,195.55,28.45551373]
[1755179509454,0.06,195.65,195.58,12.76949018]
[1755179509652,0.06,195.65,195.59,15.10621557]
[1755179509863,0.06,195.65,195.64,15.10621557]
[1755179510045,11.21314104,195.79,195.65,15.10621557]
[1755179510242,0.65,195.77,195.65,15.10621557]
[1755179510448,5.10829587,195.76,195.66,5.11090667]
[1755179510665,0.65,195.77,195.67,27.87570575]
[1755179510885,0.65,195.77,195.69,27.87570575]
[1755179511166,0.65,195.81,195.71,15.10621557]
[1755179511537,0.1,195.83,195.73,12.76949018]
[1755179511742,0.75,195.83,195.74,33.7]
[1755179512445,0.75,195.83,195.75,5.10855683]
[1755179512657,0.75,195.83,195.76,43.7]
[1755179513069,5.8565109,195.83,195.76,43.7]
[1755179513651,0.1,195.83,195.77,15.10621557]
[1755179513874,0.1,195.83,195.79,15.10621557]
[1755179514054,0.1,195.83,195.82,15.10621557]
[1755179514257,0.65,195.94,195.83,15.10621557]
[1755179514463,0.15,195.94,195.84,48.80620915]
[1755179514775,0.06,195.89,195.84,61.57173202]
[1755179514947,0.06,195.89,195.84,74.3412222]
[1755179515150,0.06,195.89,195.86,12.76949018]
[1755179515351,0.06,195.89,195.85,15.10621557]
[1755179515546,0.06,195.89,195.85,27.87570575]
[1755179515763,0.06,195.89,195.84,61.57173202]
[1755179515975,0.06,195.89,195.84,62.07569933]
[1755179516276,0.06,195.89,195.86,12.76949018]
[1755179516450,0.06,195.89,195.85,12.76949018]
[1755179516650,0.06,195.89,195.85,32.98140039]
[1755179516851,0.06,195.89,195.86,12.76949018]
[1755179517078,0.06,195.89,195.85,20.21191021]
[1755179517459,0.06,195.89,195.85,32.98140039]
[1755179517653,0.06,195.89,195.86,12.76949018]
[1755179517859,0.06,195.89,195.85,17.87518482]
[1755179518175,0.06,195.89,195.85,18.37518482]
[1755179518377,0.06,195.89,195.86,12.76949018]
[1755179518580,0.06,195.89,195.88,12.76949018]
[1755179518770,0.06,195.89,195.85,17.87056571]
[1755179518771,0.06,195.89,195.85,30.64005589]
[1755179519363,0.06,195.89,195.87,12.76949018]
[1755179519563,0.06,195.89,195.85,17.87056571]
[1755179519761,0.06,195.89,195.86,12.76949018]
[1755179519965,0.06,195.89,195.85,17.87056571]
[1755179520170,0.06,195.89,195.86,12.76949018]
[1755179520376,0.06,195.89,195.88,5.10516642]
[1755179520686,0.06,195.89,195.88,48.74516642]
[1755179520864,0.06,195.89,195.88,43.64]
[1755179522282,0.06,195.89,195.88,72.01570575]
[1755179522579,0.7,195.98,195.89,5.10490581]
[1755179522779,5.10128054,196.03,195.89,5.10490581]
[1755179522780,0.7,195.99,195.89,5.10490581]
[1755179523074,0.7,195.99,195.84,25.53018444]
[1755179523075,0.7,195.97,195.9,43.62]
[1755179524080,0.7,196.01,195.95,12.76949018]
[1755179524273,5.10128054,196.03,195.96,90.04949018]
[1755179524676,5.10128054,196.03,195.96,77.28]
[1755179524880,0.7,196.02,195.97,43.62]